Cogmind - Beta 16.1 @@@ ROGUE MODE // 2026.03.27 @ 23:23:17 Player: RHAHI Result: Destroyed by AX-QAR(R) with Subdweller Machine Gun Performance ------------- Evolutions (0) 0 Regions Visited (2) 400 Robots Destroyed (36) 180 Value Destroyed (924) 924 Prototype IDs (2) 40 Alien Tech Used (0) 0 Bonus (0) 0 TOTAL SCORE: 1544 Bonus ------- None Cogmind --------- Core Integrity 0/250 Matter 300/300 Energy 24/100 System Corruption 0% Temperature Cool (0) Movement Rolling (110) Location -10/Subcaves Parts ------- > --- POWER (1) -------- (None) > --- PROPULSION (2) --- Subdweller Monowheel Subdweller Monowheel > --- UTILITY (2) ------ Scrap Shield > --- WEAPON (2) ------- Subdweller Laser Subdweller Laser > --- INVENTORY (5) ---- Subdweller Monowheel Subdweller Monowheel Subdweller Monowheel Subdweller Optics Subdweller Machine Gun Peak State ------------ > --- POWER ------------ Subdweller Power Source > --- PROPULSION ------- Subdweller Monowheel Subdweller Monowheel > --- UTILITY ---------- High-capacity Storage Unit Makeshift Light Armor Plating > --- WEAPON ----------- Subdweller Beam Cannon Subdweller Machine Gun > --- INVENTORY -------- Subdweller Power Source Subdweller Power Source Subdweller Power Source Subdweller Power Source Subdweller Power Source Subdweller Monowheel Subdweller Monowheel Subdweller Monowheel Subdweller Optics Subdweller Optics Subdweller Optics Subdweller Optics Scrap Shield Subdweller Laser Subdweller Beam Cannon Subdweller Machine Gun Makeshift Spear Shrapnel Trap Piercing Trap [Rating: 19] Favorites ----------- Power Subdweller Power Source Engine Subdweller Power Source Propulsion Light Treads Treads Light Treads Leg Aluminum Leg Wheel Subdweller Monowheel Utility High-capacity Storage Unit Device Seismic Detector Storage High-capacity Storage Unit Processor Targeting Computer Protection Makeshift Light Armor Plating Weapon Subdweller Machine Gun Energy Gun Subdweller Laser Energy Cannon Beam Cannon Ballistic Gun Subdweller Machine Gun Ballistic Cannon Battle Cannon Launcher Rocket Launcher Special Weapon Mining Laser Build | -11 -10 -10 ------- Run | Yrd Mat Sub Slots Evolved . | . . . Power . | . . . Propulsion . | . . . Utility . | . . . Weapon . | . . . Parts Attached 36 | 4 5 27 Power 5 | . 2 3 Engine 5 | . 2 3 Core . | . . . Reactor . | . . . Propulsion 9 | 2 . 7 Treads 4 | 2 . 2 Leg 1 | . . 1 Wheel 4 | . . 4 Hover . | . . . Flight . | . . . Utility 6 | . 3 3 Device 1 | . 1 . Storage 1 | . 1 . Processor 1 | . 1 . Hackware . | . . . Protection 3 | . . 3 Artifact . | . . . Weapon 16 | 2 . 14 Energy Gun 3 | . . 3 Energy Cannon 3 | . . 3 Ballistic Gun 7 | 2 . 5 Ballistic Cannon 1 | . . 1 Launcher 1 | . . 1 Special Weapon 1 | . . 1 Impact Weapon . | . . . Slashing Weapon . | . . . Piercing Weapon . | . . . Special Melee Weapon . | . . . Unidentified Prototypes . | . . . Parts Lost 10 | . 1 9 Power 2 | . 1 1 Propulsion 4 | . . 4 Utility 1 | . . 1 Weapon 3 | . . 3 Highest Loss Streak 3 | . 1 3 To Critical Strikes . | . . . Average Backups 14 | 2 7 16 Power 3 | 1 . 4 Propulsion 2 | . 1 2 Utility 4 | . 2 5 Weapon 3 | 1 2 3 Tool/Special . | . . . Unused Backups 36 | . 1 35 Power 7 | . . 7 Propulsion 9 | . . 9 Utility 13 | . 1 12 Weapon 7 | . . 7 Tool/Special . | . . . Average Slot Usage (%) 99 | . 98 99 Engine 13 | . 12 13 Treads 18 | . 28 16 Wheel 8 | . . 10 Device 6 | . 13 4 Storage 13 | . 9 13 Protection 7 | . . 9 Energy Gun 2 | . . 2 Energy Cannon 2 | . . 3 Ballistic Gun 20 | . 28 18 Special Weapon 1 | . . 1 Peak Build Rating 19 | 4 9 19 Average Rating 13 | 2 7 14 On Entrance 4 | . 4 9 Avg Prop Armor Cover (%) 9 | 27 22 6 Naked Turns . | . . . Heaviest Build 65 | 4 50 65 Greatest Support 40 | 3 40 40 Greatest Overweight (x) 3 | 1 3 3 Average Overweight (x) 1 | . 1 1 Largest Inventory Capacity 20 | 5 20 20 Average Capacity 18 | 5 15 19 Most Carried 20 | 5 20 20 Average Carried 15 | 3 7 18 Final Capacity 20 | 5 20 5 Final Carried 20 | 5 20 5 Class Distribution -------------------- 52% | Mutant 47% | Scavenger-Mutant Dominant Class ---------------- Mutant | -10/Materials Scavenger-Mutant | -10/Subcaves Resources | -11 -10 -10 ----------- Run | Yrd Mat Sub Matter Collected 1195 | 227 345 623 Remotely . | . . . Salvage Created 1043 | 15 410 618 Parts 78 | 4 23 51 Haulers Intercepted 2 | . 2 . Recyclers Shooed . | . . . Parts Field Recycled . | . . . Retrieved Matter . | . . . Parts Self-Destructed 18 | . . 18 Prevented . | . . . Parts Restored . | . . . Kills | -11 -10 -10 ------- Run | Yrd Mat Sub Combat Hostiles Destroyed 31 | . 8 23 Guns 17 | . 8 9 Cannons 11 | . . 11 AOE 3 | . . 3 Classes Destroyed 7 | 1 4 2 Tunneler 1 | 1 . . Hauler 2 | . 2 . Watcher 2 | . 2 . Swarmer 12 | . 3 9 Grunt 5 | . 5 . Sentry 1 | . . 1 Subdweller 13 | . . 13 Best Kill Streak 3 | 1 3 3 Combat Bots Only 3 | . 3 3 Max Kills in Single Turn 2 | 1 1 2 Gunslinging . | . . . Exploded 2 | . . 2 Melee . | . . . Uniques/NPCs Destroyed . | . . . Combat | -11 -10 -10 -------- Run | Yrd Mat Sub Hostile Shots Fired 180 | . 39 141 Missed 35 | . 5 30 Hits 145 | . 34 111 Projectile 145 | . 34 111 Critical Strikes 4 | . 2 2 Damage Taken 2135 | . 432 1703 Core 256 | . 68 188 Absorbed by Shields . | . . . Core Remaining (%) 100 | 100 . . Volleys Fired 141 | 1 39 101 Largest 2 | 2 2 2 Hottest 160 | 40 40 160 Shots Fired 248 | 2 78 168 Gun 181 | 2 78 101 Cannon 45 | . . 45 Launcher 2 | . . 2 Special 20 | . . 20 Kinetic 168 | 2 78 88 Thermal 78 | . . 78 Explosive 2 | . . 2 Electromagnetic . | . . . Robot Hit Streak 16 | 2 6 16 Robot Miss Streak 5 | . 5 2 Penetration Max . | . . . Secondary Targets 1 | . 1 . Max Gunslinging Chain 1 | . 1 . Shots Hit Robots 155 | 2 45 108 Core Hits 54 | 1 21 32 Critical Kills . | . . . Critical Parts Destroyed . | . . . Critical Strikes 3 | . . 3 Destroy 2 | . . 2 Blast 1 | . . 1 Melee Attacks . | . . . Impact . | . . . Slashing . | . . . Piercing . | . . . Sneak Attacks . | . . . Combat Hostiles . | . . . Follow-up Attacks . | . . . Damage Inflicted 2564 | 22 570 1972 Guns 1627 | 22 570 1035 Cannons 728 | . . 728 Explosions 209 | . . 209 Melee . | . . . Ramming . | . . . Kinetic 1421 | 22 570 829 Thermal 934 | . . 934 Explosive 209 | . . 209 Electromagnetic . | . . . Impact . | . . . Slashing . | . . . Piercing . | . . . Highest Corruption . | . . . Average Corruption . | . . . Corruption Purged . | . . . Corruption Blocked . | . . . Overload Shots . | . . . Overflow Damage 41 | . . 41 Projectiles . | . . . Explosions 41 | . . 41 Melee . | . . . Knockbacks 2 | . . 2 Impact . | . . . Kinetic 2 | . . 2 Secondary . | . . . Self-Inflicted Damage . | . . . Shots . | . . . Rammed . | . . . Targets Rammed . | . . . Kicked . | . . . Crushed . | . . . Highest Temperature 162 | . 28 162 Average Temperature 24 | . 8 31 Received Heat Transfer 495 | . 267 228 Siege Activations . | . . . Martial Activations . | . . . Shielding Activations . | . . . Robots Disrupted . | . . . Combat Hostiles . | . . . Robots Corrupted . | . . . Combat Hostiles . | . . . Parts Fried . | . . . Impact Corruptions . | . . . Robots Melted . | . . . Combat Hostiles . | . . . Parts Melted . | . . . Heat Transferred 1301 | . . 1301 Parts Sabotaged . | . . . Parts Stolen . | . . . Parts Stripped . | . . . Power Chain Reactions . | . . . Alert | -11 -10 -10 ------- Run | Yrd Mat Sub Maximum Alert Level . | . . . Low Security (%) 100 | 100 100 . Level 1 . | . . . Level 2 . | . . . Level 3 . | . . . Level 4 . | . . . Level 5 . | . . . High Security . | . . . Max Security . | . . . Peak Influence 97 | 5 97 . Initial . | . . . Average 19 | 1 20 . Influence Increases 517 | 5 247 265 Destroy 0b10 Robot/C 360 | . 160 200 Destroy 0b10 Robot/NC 25 | 5 20 . Destroy Leader 58 | . 38 20 Successful Hack 29 | . 29 . Lose Combat Pursuer 45 | . . 45 Influence Decreases 432 | 5 247 180 Time Decay 382 | 5 237 140 Lost Part 50 | . 10 40 Squads Dispatched . | . . . Investigation . | . . . Extermination . | . . . Reinforcement . | . . . Assault . | . . . Garrison . | . . . Intercept . | . . . Searches Triggered . | . . . Construction Impeded . | . . . Haulers Reinforced . | . . . Active Scanning Responses . | . . . Cargo Convoy Interrupts . | . . . Stealth | -11 -10 -10 --------- Run | Yrd Mat Sub Distress Signals 1 | . 1 . Communications Jammed . | . . . Distress Signals . | . . . Times Spotted 46 | . 16 30 Peak Tracking Total 6 | . 4 6 Tactical Retreats 2 | . . 2 Traps | -11 -10 -10 ------- Run | Yrd Mat Sub Traps Triggered 1 | . . 1 Indirectly . | . . . Trap Hack Attempts . | . . . Triggered . | . . . Disarmed . | . . . Reprogrammed . | . . . Reused . | . . . Traps Extracted . | . . . Installed . | . . . Triggered . | . . . Most Traps Carried 2 | . . 2 Machines | -11 -10 -10 ---------- Run | Yrd Mat Sub Machines Disabled . | . . . Max in Single Turn . | . . . Machines Repaired . | . . . Machines Dismantled . | . . . Machines Sabotaged . | . . . Overloaded Fab Kills . | . . . Hacking | -11 -10 -10 --------- Run | Yrd Mat Sub Machines Accessed 8 | . 8 . Terminals 8 | . 8 . Fabricators . | . . . Repair Stations . | . . . Recycling Units . | . . . Scanalyzers . | . . . Garrison Access . | . . . Total Hacks 29 | . 29 . Successful 14 | . 14 . Failed 15 | . 15 . Catastrophic . | . . . Database Lockouts . | . . . Manual 27 | . 27 . Terminals 29 | . 29 . Fabricators . | . . . Repair Stations . | . . . Recycling Units . | . . . Scanalyzers . | . . . Garrison Access . | . . . Terminal Hacks 7 | . 7 . Robot Schematic 1 | . 1 . Robot Analysis 4 | . 4 . Prototype ID Bank 1 | . 1 . Alert Level 1 | . 1 . Fabricator Hacks . | . . . Repair Station Hacks . | . . . Recycling Unit Hacks . | . . . Scanalyzer . | . . . Garrison Access Hacks . | . . . Unauthorized Hacks 7 | . 7 . Terminals 7 | . 7 . Assimilate 1 | . 1 . Botnet 1 | . 1 . Skim 5 | . 5 . Fabricators . | . . . Repair Stations . | . . . Recycling Units . | . . . Scanalyzers . | . . . Garrison Access . | . . . Data Cores Recovered . | . . . Used . | . . . Hacking Detections 8 | . 8 . Full Trace Events . | . . . Feedback Events . | . . . Feedback Blocked . | . . . Robot Schematics Acquired 1 | . 1 . Robots Built . | . . . Authchips . | . . . Time . | . . . Total Robot Build Rating . | . . . Part Schematics Acquired . | . . . Parts Built . | . . . Authchips . | . . . Time . | . . . Total Part Build Rating . | . . . Part Studies Acquired . | . . . Parts Repaired . | . . . Time . | . . . Parts Recycled . | . . . Recycled Matter . | . . . Retrieved Matter . | . . . Retrieved Components . | . . . Parts Scanalyzed . | . . . Part Schematics Acquired . | . . . Parts Damaged . | . . . Bothacking | -11 -10 -10 ------------ Run | Yrd Mat Sub Used RIF Installer . | . . . Robots Hacked . | . . . Non-combat . | . . . Combat . | . . . Robot Hacks Applied . | . . . Relay Couplers Released . | . . . Fabnet Peak Effective % . | . . . Robots Rewired . | . . . Allies Hacked . | . . . Hacks Repelled . | . . . Allies | -11 -10 -10 -------- Run | Yrd Mat Sub Total Allies 1 | . 1 . Largest Group 1 | . 1 1 Highest-Rated Group 10 | . 10 10 Highest-Rated Ally 10 | . 10 10 Total Orders 5 | . . 5 STAY 3 | . . 3 FOLLOW 2 | . . 2 Ally Attacks . | . . . Total Damage . | . . . Kills . | . . . Allies Corrupted . | . . . Allies Melted . | . . . Intel | -11 -10 -10 ------- Run | Yrd Mat Sub Active Infowar (turns) 2929 | . 1169 1760 Seismic 2929 | . 1169 1760 Robot Analysis Total 4 | . 4 . Derelict Logs Recovered 2 | . . 2 Drone Launches . | . . . Drone Recoveries . | . . . Exploration | -11 -10 -10 ------------- Run | Yrd Mat Sub Turns Passed 6366 | 48 1176 5142 Spaces Moved 2136 | 51 492 1593 Core 219 | 51 168 . Treads 1301 | . 324 977 Legs . | . . . Wheels 616 | . . 616 Hover . | . . . Flight . | . . . Fastest Speed 50 | 50 100 110 Average Speed 213 | 66 206 221 Slowest Speed 320 | 100 240 320 Overloaded Moves . | . . . Propulsion Burnouts . | . . . Robots Hopped . | . . . Potential Cave-ins . | . . . Cave-ins Triggered . | . . . Exploration Rate (%) 60 | 3 94 84 Regions Visited 2 Branch Regions 1 Pre-discovered Areas 1 | . . 1 Known Exits Taken 1 | . 1 . Unknown Exits Taken 1 | 1 . . Scrap Searched 9 | . . 9 Spaces Dug . | . . . Terrain Destroyed 23 | . . 23 Melee . | . . . Projectile 3 | . . 3 AOE 20 | . . 20 Terrain Rammed . | . . . Walls Destroyed . | . . . Machines Disabled . | . . . Actions | -11 -10 -10 --------- Run | Yrd Mat Sub Total 3654 | 61 578 3015 Wait 1204 | . 19 1185 Move 2134 | 50 491 1593 Hop . | . . . Pick Up 72 | 6 20 46 Fast Attach 9 | 3 1 5 Attach 16 | 1 5 10 Detach 4 | . 2 2 Swap 23 | . . 23 Drop 51 | . 1 50 Fire 141 | 1 39 101 Melee . | . . . Ram . | . . . Kick . | . . . Crush . | . . . Escape Stasis . | . . . Rewire . | . . . Trap . | . . . Miscellaneous . | . . . Route ------- -11/Scrapyard -10/Materials (discovered 5 exits: *Mat x3 / [*Min] / *Sub) -10/Subcaves (discovered 4 exits: [*Mat x2] / *Rec / [*Scr]) History --------- Turn | Location | Event 13 | -11/Scrapyard | Discovered new exit (range 16) 49 | -11/Scrapyard | Entered Materials 301 | -10/Materials | Build established: Mutant 391 | -10/Materials | Discovered new exit (range 16) 529 | -10/Materials | Discovered new exit (range 16) 693 | -10/Materials | Discovered new exit (range 14) 695 | -10/Materials | Learned location of 2 exits from Mines 729 | -10/Materials | Learned Recycling recycling unit intel 755 | -10/Materials | Identified exit to Materials 777 | -10/Materials | Learned 2 Mines zone layouts 778 | -10/Materials | Identified exit to Subcaves 783 | -10/Materials | Learned location of 1 exit from Recycling 798 | -10/Materials | Learned location of 1 exit from Storage 825 | -10/Materials | Learned 4 Subcaves zone layouts 1225 | -10/Materials | Entered Subcaves 1225 | -10/Subcaves | Accompanied by 1 ally 1226 | -10/Subcaves | Approached by a straggling Scientist 1242 | -10/Subcaves | Identified exit to Recycling 1571 | -10/Subcaves | Shifting Twisted Machinery released Sub. Optics 1684 | -10/Subcaves | Scientist uncovered a shortcut to Scraptown 1693 | -10/Subcaves | Learned location of Zion (-7) 1693 | -10/Subcaves | Met a Zionite searching for "candidates" 1787 | -10/Subcaves | Shifting Twisted Machinery released Battle Cannon 1800 | -10/Subcaves | Shifting Twisted Machinery released Sub. Monowheel 1899 | -10/Subcaves | A swath of the cavern ceiling suddenly collapsed 2020 | -10/Subcaves | Lost 3 parts (2n1w) 2453 | -10/Subcaves | Discovered new exit (range 11) 2702 | -10/Subcaves | Discovered new exit (range 10) 2828 | -10/Subcaves | A swath of the cavern ceiling suddenly collapsed 3551 | -10/Subcaves | Learned Materials emergency access door positions 3573 | -10/Subcaves | Build established: Scavenger-Mutant 3691 | -10/Subcaves | Shifting Twisted Machinery released Mak. Spear 3879 | -10/Subcaves | Core integrity fell below 50% 4278 | -10/Subcaves | Lost 3 parts (1n1u1w) 5386 | -10/Subcaves | Shifting Twisted Machinery released Battle Rifle 5971 | -10/Subcaves | Core integrity fell below 20% 6367 | -10/Subcaves | Destroyed by AX-QAR(R) with Subdweller Machine Gun Last Messages --------------- down. 06257_ OC-ENH(R) destroyed. 06266_ OA-LZP(R) destroyed. 06270_ Acquired 32 matter. 06273_ Dropped Broken Sub. Beam Cannon. 06273_ Dropped Sub. Laser. 06274_ Dropped Broken Sub. Beam Cannon. 06278_ Acquired Sub. Laser. 06283_ Acquired Sub. Monowheel. 06316_ Sub. Machine Gun shoots sparks and powers down. 06318_ Dropped Broken Sub. Machine Gun. 06337_ Dropped Scrap Shield. 06337_ Dropped Hcp. Storage Unit. 06338_ Dropped Mak. Light Armor Plating. 06338_ Acquired Scrap Shield. 06344_ YC-G4W(R) suffers critical hit (Destroy). 06351_ Sub. Power Source destroyed. 06353_ YC-G4W(R) destroyed. 06354_ Acquired 29 matter. Map ----- +----------------------------------------------------+ | | | | | | | | | | | ?????????????????????????????????????????????????? | | ?????????????????????????????????????????????????? | | ?????????????????????????????????????????????????? | | ?????????????????????????????????????????????????? | | ?????????????????????????????????????????????????? | | ?????????????????????????????????????????????????? | | ?????????????????????????????????????????????????? | | ?????????????????????????????????????????????????? | | ?????????????????????????????????????????????????? | | ?????????????????????????????????????????????????? | | ?????????????????????????????????????????????????? | | ?????????????????????????????????????????????????? | | ?????????????????????????????????????????????????? | | ?????????????????????????????????????????????????? | | #????????????????????????????????????????????????? | | ##???????????????????????????????????????????????? | | #???????????????????????????????????????????????? | | #############??###################### ??????????? | | ## # &####"" #*#[ #" # """""??????????? | | &&%""""" !*&R& """" """"""""""?????? | | &&%"" " !!!!@/! " " ""?????? | | ## ] &#&]" *#%#=#### [#### #????? | | ### ##################??####????????? #????? | | ##?## ##?????????????????????????????????????? | | ##?### #?????????????????????????????????????? | | #??# #?????????????????????????????????????? | | #??## #?????????????????????????????????????? | | ##??######?????????????????????????????????????? | | #?????????????????????????????????????????????? | | #?????????????????????????????????????????????? | | #????????????????????????????????????????????? | | ???????????????????????????????????????????? | | ???????????????????????????????????????????? | | ####?????????????????????????????????????????????? | | ?????????????????????????????????????????????????? | | #????????????????????????????????????????????????? | | #????????????????????????????????????????????????? | | #????????????????????????????????????????????????? | | ?????????????????????????????????????????????????? | | ?????????????????????????????????????????????????? | | ?????????????????????????????????????????????????? | | #????????????????????????????????????????????????? | | #???????????????????????????????????????????????? | | ##??????????????????????????????#######??????????? | | #???????????????????????????????#" [["#??????????? | +----------------------------------------------------+ Best States ------------- Heat Dissipation 25 Energy Generation 15 Energy Capacity 250 Matter Stores 300 Matter Capacity 300 Sight Range 16 Terrain Scan Density 10 Armor Coverage 800 Core Shielding 20 Evasion (%) 50 Targeting Accuracy 5 Recoil Reduction 2 Item Schematics ----------------- None Robot Schematics ------------------ M-13 Machinist | -10/Materials | Hacked Fabricated ------------ Nothing Repaired ---------- Nothing Studied --------- None Alien Tech Used ----------------- None Achievements -------------- None Challenges ------------ None Game ------ Seed RecoilWardroneBrace Manual? 0 Play Time 00:45:06 Cumulative 115.4 hours Start 2026.03.27 @ 22:39:14 End 2026.03.27 @ 23:23:17 Sessions 1 Manual Loads 0 Difficulty Rogue Special Mode None Game No. 43 Rogue 42 Adventurer 1 Explorer 0 Win Type - Total 2 Types 1/0/1/0/0/0/0/0/0/0 Lore% 45 Gallery% 46 Achievement% 41 Wizard Run 0 Options --------- Layout 2 ASCII 0 Keyboard 1 Movement Vi Keybinds 1 Fullscreen 2 Font 32/Terminus Map View 50x44 Zoom Use 0% Tactical HUD 1 Map Filters NONE Filters NONE Steam 0 RUN: 07b7f8e8-c98a-4b13-8d76-aa06c1d72443